[Event "Centenario Panaderia Pulido 2023"]
[Site "San Mateo Gran Canaria"]
[Date "2023.12.06"]
[Round "4.3"]
[White "Doluhanova, Evgeniya"]
[Black "Mamani Beltran, Deniman"]
[Result "1/2-1/2"]
[ECO "E17"]
[WhiteElo "2177"]
[BlackElo "2151"]
[Annotator "RC"]
[PlyCount "111"]
[EventDate "2023.12.04"]
[EventType "swiss"]
[EventCountry "ESP"]
[SourceTitle "playchess.com"]
[Source "ChessBase"]
[SourceQuality "1"]
[TimeControl "5400+30"]

1. c4 {[%emt 0:01:57]} e6 {[%emt 0:00:15]} 2. Nf3 {[%emt 0:01:13]} Nf6 {[%emt 0:00:20]} 3. g3 {[%emt 0:00:12]} d5 {[%emt 0:00:29]} 4. b3 {[%emt 0:00:20]} Be7 {[%emt 0:00:43]} 5. Bg2 {[%emt 0:00:13]} O-O {[%emt 0:00:09]} 6. O-O {[%emt 0:00:05]} c5 {[%emt 0:00:16]} 7. cxd5 {[%emt 0:00:53]} Nxd5 {[%emt 0:00:05]} 8. Bb2 {[%emt 0:00:22]} b6 {[%emt 0:04:13]} 9. d4 {[%emt 0:10:24]} Bb7 {[%emt 0:04:41]} 10. Nbd2 {[%emt 0:01:52]} Nd7 {[%emt 0:08:08]} 11. Nc4 {[%emt 0:03:23]} Rc8 {[%emt 0:06:36]} 12. Qd2 {[%emt 0:23:00]} cxd4 {[%emt 0:08:25]} 13. Bxd4 {[%emt 0:01:00]} Bb4 {[%emt 0:00:54]} 14. Qb2 {[%emt 0:00:43]} b5 {[%emt 0:00:32]} 15. a3 {[%emt 0:05:57]} Bc5 {[%emt 0:02:52]} 16. Nce5 {[%emt 0:11:09]} Bxd4 {[%emt 0:04:10]} 17. Qxd4 {[%emt 0:00:10]} Nxe5 {[%emt 0:00:16]} 18. Qxe5 {[%emt 0:00:15]} Qf6 {[%emt 0:00:37]} 19. Qxf6 {[%emt 0:00:30]} Nxf6 {[%emt 0:00:07]} 20. Nd4 {[%emt 0:00:10]} Bxg2 {[%emt 0:01:23]} 21. Kxg2 {[%emt 0:00:06]} a6 {[%emt 0:00:46]} 22. Rfc1 {[%emt 0:00:20]} Rfe8 {[%emt 0:02:15]} 23. Nc6 {[%emt 0:02:13]} Kf8 {[%emt 0:00:18]} 24. a4 {[%emt 0:05:12]} Rc7 {[%emt 0:05:48]} 25. axb5 {[%emt 0:00:47]} axb5 {[%emt 0:00:05]} 26. Nd4 {[%emt 0:01:23]} Rd7 {[%emt 0:08:18]} 27. e3 {[%emt 0:09:19]} Rb8 {[%emt 0:11:16]} 28. Rc5 {[%emt 0:01:25]} b4 {[%emt 0:01:20]} 29. Rc4 {[%emt 0:00:55]} Nd5 {[%emt 0:00:22]} 30. e4 {[%emt 0:05:14]} Nc3 {[%emt 0:02:16]} 31. Nc6 {[%emt 0:00:31]} Rc8 {[%emt 0:00:14]} 32. Ne5 {[%emt 0:02:52]} Rxc4 {[%emt 0:01:01]} 33. Nxd7+ {[%emt 0:00:47]} Ke7 {[%emt 0:00:22]} 34. bxc4 {[%emt 0:04:16]} Kxd7 {[%emt 0:00:06]} 35. Ra6 {[%emt 0:00:07]} Kc7 {[%emt 0:00:32]} 36. c5 {[%emt 0:00:06]} Nxe4 {[%emt 0:00:20]} 37. Rb6 {[%emt 0:00:20]} Nxc5 {[%emt 0:00:06]} 38. Rxb4 {[%emt 0:00:03]} e5 {[%emt 0:00:53]} 39. Rb5 {[%emt 0:00:45]} Kd6 {[%emt 0:00:51]} 40. Rb8 {[%emt 0:00:29]} Ke7 {[%emt 0:00:56]} 41. h4 {[%emt 0:00:48]} h5 {[%emt 0:01:56]} 42. Kf3 {[%emt 0:00:13]} f5 {[%emt 0:00:38]} 43. Rb6 {[%emt 0:01:43]} Ne6 {[%emt 0:00:12]} 44. Ke3 {[%emt 0:00:24]} Nc7 {[%emt 0:02:32]} 45. Rb7 {[%emt 0:01:34]} Kd6 {[%emt 0:00:18]} 46. f3 {[%emt 0:00:52]} Ne6 {[%emt 0:01:08]} 47. Rf7 {[%emt 0:01:52]} f4+ {[%emt 0:01:10]} 48. gxf4 {[%emt 0:00:12]} exf4+ {[%emt 0:00:07]} 49. Ke4 {[%emt 0:00:42]} g5 {[%emt 0:00:06]} 50. Rf6 {[%emt 0:00:51]} Ke7 {[%emt 0:00:20]} 51. Rxe6+ {[%emt 0:00:45]} Kxe6 {[%emt 0:00:11]} 52. hxg5 {[%emt 0:00:05]} Kf7 {[%emt 0:00:09]} 53. Kf5 {[%emt 0:02:47]} Kg7 {[%emt 0:00:10]} 54. g6 {[%emt 0:01:31]} h4 {[%emt 0:00:11]} 55. Kg4 {[%emt 0:00:35]} Kxg6 {[%emt 0:00:05]} 56. Kxh4 {[%emt 0:00:27]} 1/2-1/2

[Event "Centenario Panaderia Pulido 2023"]
[Site "San Mateo Gran Canaria"]
[Date "2023.12.06"]
[Round "4.4"]
[White "Moreno Diepa, Diego"]
[Black "Gimenez Menchon, Cesar"]
[Result "0-1"]
[ECO "B12"]
[WhiteElo "2138"]
[BlackElo "2088"]
[Annotator "RC"]
[PlyCount "68"]
[EventDate "2023.12.04"]
[EventType "swiss"]
[EventCountry "ESP"]
[SourceTitle "playchess.com"]
[Source "ChessBase"]
[SourceQuality "1"]
[TimeControl "5400+30"]

1. e4 {[%emt 0:00:05]} c6 {[%emt 0:00:04]} 2. d4 {[%emt 0:00:03]} d5 {[%emt 0:00:04]} 3. e5 {[%emt 0:00:03]} c5 {[%emt 0:00:04]} 4. dxc5 {[%emt 0:01:46]} e6 {[%emt 0:00:06]} 5. a3 {[%emt 0:01:28]} Bxc5 {[%emt 0:00:08]} 6. b4 {[%emt 0:01:01]} Be7 {[%emt 0:00:06]} 7. Nf3 {[%emt 0:00:07]} a5 {[%emt 0:00:12]} 8. b5 {[%emt 0:00:30]} Nd7 {[%emt 0:00:22]} 9. Bd3 {[%emt 0:01:59]} f6 {[%emt 0:02:00]} 10. Bb2 {[%emt 0:02:13]} Nh6 {[%emt 0:00:50]} 11. O-O {[%emt 0:02:50]} Nf7 {[%emt 0:00:16]} 12. c4 {[%emt 0:19:13]} fxe5 {[%emt 0:04:19]} 13. cxd5 {[%emt 0:02:26]} exd5 {[%emt 0:00:06]} 14. Bc2 {[%emt 0:06:17]} e4 {[%emt 0:09:39]} 15. Nd4 {[%emt 0:04:56]} Nde5 {[%emt 0:02:27]} 16. Nd2 {[%emt 0:01:38]} O-O {[%emt 0:01:53]} 17. Ne2 {[%emt 0:06:55]} Qd6 {[%emt 0:03:48]} 18. Ng3 {[%emt 0:05:20]} Ng4 {[%emt 0:06:21]} 19. Bb3 {[%emt 0:07:01]} e3 {[%emt 0:08:12]} 20. Nf3 {[%emt 0:02:40]} exf2+ {[%emt 0:01:46]} 21. Kh1 {[%emt 0:00:03]} Nxh2 {[%emt 0:05:02]} 22. Nxh2 {[%emt 0:02:20]} Qxg3 {[%emt 0:00:13]} 23. Qf3 {[%emt 0:01:40]} Bd6 {[%emt 0:08:54]} 24. Qxg3 {[%emt 0:00:29]} Bxg3 {[%emt 0:45:38]} 25. Bd4 {[%emt 0:06:07]} Ng5 {[%emt 0:00:00]} 26. Bxd5+ {[%emt 0:09:18]} Be6 {[%emt 0:00:00]} 27. Bxb7 {[%emt 0:01:45]} Rad8 {[%emt 0:00:00]} 28. Be3 {[%emt 0:03:02]} Rf5 {[%emt 0:00:00]} 29. Nf3 {[%emt 0:04:11]} Ne4 {[%emt 0:00:00]} 30. Bxf2 {[%emt 0:02:53]} Nxf2+ {[%emt 0:00:00]} 31. Kg1 {[%emt 0:00:03]} Rxb5 {[%emt 0:00:00]} 32. Ba6 {[%emt 0:01:21]} Rb6 {[%emt 0:00:00]} 33. Be2 {[%emt 0:00:05]} Rb2 {[%emt 0:00:00]} 34. Rae1 {[%emt 0:00:46]} Ne4 {[%emt 0:00:00]} 0-1

[Event "Centenario Panaderia Pulido 2023"]
[Site "San Mateo Gran Canaria"]
[Date "2023.12.06"]
[Round "4.5"]
[White "Hernando Rodrigo, Jose Maria"]
[Black "Kurajica, Bojan"]
[Result "1/2-1/2"]
[ECO "A46"]
[WhiteElo "2278"]
[BlackElo "2446"]
[Annotator "RC"]
[PlyCount "80"]
[EventDate "2023.12.04"]
[EventType "swiss"]
[EventCountry "ESP"]
[SourceTitle "playchess.com"]
[Source "ChessBase"]
[SourceQuality "1"]
[TimeControl "5400+30"]

1. d4 {[%emt 0:00:02]} Nf6 {[%emt 0:00:06]} 2. Nf3 {[%emt 0:00:07]} e6 {[%emt 0:00:38]} 3. e3 {[%emt 0:00:24]} d6 {[%emt 0:01:09]} 4. Bd3 {[%emt 0:02:06]} c5 {[%emt 0:02:00]} 5. O-O {[%emt 0:03:41]} Nc6 {[%emt 0:00:59]} 6. c3 {[%emt 0:00:46]} g6 {[%emt 0:03:03]} 7. dxc5 {[%emt 0:03:17]} dxc5 {[%emt 0:00:20]} 8. e4 {[%emt 0:00:07]} Bg7 {[%emt 0:00:38]} 9. Be3 {[%emt 0:02:07]} Qe7 {[%emt 0:04:54]} 10. Bb5 {[%emt 0:06:18]} Bd7 {[%emt 0:09:22]} 11. Bf4 {[%emt 0:01:39]} Nxe4 {[%emt 0:03:18]} 12. Re1 {[%emt 0:12:18]} f5 {[%emt 0:00:17]} 13. Nbd2 {[%emt 0:12:35]} Nd6 {[%emt 0:01:09]} 14. Bxc6 {[%emt 0:00:17]} Bxc6 {[%emt 0:01:35]} 15. Qb3 {[%emt 0:05:21]} Ne4 {[%emt 0:22:06]} 16. Nxe4 {[%emt 0:00:11]} fxe4 {[%emt 0:00:17]} 17. Ne5 {[%emt 0:01:16]} Bxe5 {[%emt 0:02:57]} 18. Bxe5 {[%emt 0:00:06]} O-O {[%emt 0:00:07]} 19. Re3 {[%emt 0:03:46]} Rad8 {[%emt 0:06:07]} 20. Rae1 {[%emt 0:09:13]} Rd2 {[%emt 0:07:06]} 21. R1e2 {[%emt 0:10:17]} Rd3 {[%emt 0:03:57]} 22. h3 {[%emt 0:03:15]} b5 {[%emt 0:05:56]} 23. Qa3 {[%emt 0:01:57]} Rf5 {[%emt 0:03:08]} 24. Bb8 {[%emt 0:02:27]} Rf7 {[%emt 0:02:28]} 25. Bg3 {[%emt 0:04:38]} g5 {[%emt 0:03:05]} 26. Qa6 {[%emt 0:02:01]} Qb7 {[%emt 0:02:25]} 27. Qa5 {[%emt 0:00:15]} Rfd7 {[%emt 0:01:34]} 28. a4 {[%emt 0:01:12]} a6 {[%emt 0:00:55]} 29. c4 {[%emt 0:01:41]} Rd1+ {[%emt 0:02:05]} 30. Kh2 {[%emt 0:00:19]} Ra1 {[%emt 0:00:32]} 31. cxb5 {[%emt 0:00:12]} axb5 {[%emt 0:00:06]} 32. Qc3 {[%emt 0:00:31]} Rdd1 {[%emt 0:00:13]} 33. Re1 {[%emt 0:02:28]} Rxe1 {[%emt 0:00:44]} 34. Rxe1 {[%emt 0:00:10]} Rxe1 {[%emt 0:00:49]} 35. Qxe1 {[%emt 0:00:04]} bxa4 {[%emt 0:00:10]} 36. Qc3 {[%emt 0:01:04]} Qe7 {[%emt 0:00:29]} 37. Be5 {[%emt 0:00:20]} Kf7 {[%emt 0:00:59]} 38. Qg3 {[%emt 0:00:53]} Kg6 {[%emt 0:01:33]} 39. Bd6 {[%emt 0:02:03]} Qf6 {[%emt 0:00:09]} 40. Bxc5 {[%emt 0:00:08]} Qf4 {[%emt 0:00:33]} 1/2-1/2

[Event "Centenario Panaderia Pulido 2023"]
[Site "San Mateo Gran Canaria"]
[Date "2023.12.06"]
[Round "4.6"]
[White "Bergero, Simone"]
[Black "Oudeh Mishmesh, Omar"]
[Result "0-1"]
[ECO "C02"]
[WhiteElo "2010"]
[BlackElo "2247"]
[Annotator "RC"]
[PlyCount "92"]
[EventDate "2023.12.04"]
[EventType "swiss"]
[EventCountry "ESP"]
[SourceTitle "playchess.com"]
[Source "ChessBase"]
[SourceQuality "1"]
[TimeControl "5400+30"]

1. e4 {[%emt 0:06:45]} e6 {[%emt 0:00:18]} 2. d4 {[%emt 0:00:05]} d5 {[%emt 0:00:06]} 3. e5 {[%emt 0:00:05]} c5 {[%emt 0:00:10]} 4. c3 {[%emt 0:00:04]} Nc6 {[%emt 0:00:14]} 5. Nf3 {[%emt 0:00:06]} Bd7 {[%emt 0:00:04]} 6. Bd3 {[%emt 0:00:05]} Rc8 {[%emt 0:00:13]} 7. O-O {[%emt 0:05:40]} cxd4 {[%emt 0:00:05]} 8. a3 {[%emt 0:00:04]} dxc3 {[%emt 0:04:26]} 9. Nxc3 {[%emt 0:01:36]} a6 {[%emt 0:07:26]} 10. Be3 {[%emt 0:04:03]} Qc7 {[%emt 0:18:50]} 11. Re1 {[%emt 0:11:40]} Nge7 {[%emt 0:08:30]} 12. Rc1 {[%emt 0:18:42]} Ng6 {[%emt 0:12:52]} 13. Na4 {[%emt 0:10:32]} Be7 {[%emt 0:15:35]} 14. Bxg6 {[%emt 0:09:32]} hxg6 {[%emt 0:00:22]} 15. Bb6 {[%emt 0:00:04]} Qb8 {[%emt 0:00:33]} 16. Nc5 {[%emt 0:00:04]} Rh5 {[%emt 0:13:51]} 17. Nxd7 {[%emt 0:06:50]} Kxd7 {[%emt 0:00:09]} 18. Qa4 {[%emt 0:00:03]} Rf5 {[%emt 0:07:41]} 19. Rc3 {[%emt 0:04:47]} g5 {[%emt 0:01:09]} 20. Rec1 {[%emt 0:00:43]} Rf4 {[%emt 0:01:00]} 21. Nd4 {[%emt 0:10:58]} Qxe5 {[%emt 0:03:55]} 22. Rxc6 {[%emt 0:01:27]} bxc6 {[%emt 0:00:56]} 23. g3 {[%emt 0:02:23]} Rxd4 {[%emt 0:01:32]} 24. Bxd4 {[%emt 0:00:04]} Qe4 {[%emt 0:00:34]} 25. Qd1 {[%emt 0:01:07]} e5 {[%emt 0:01:08]} 26. Ba7 {[%emt 0:00:46]} Rc7 {[%emt 0:00:21]} 27. f3 {[%emt 0:00:23]} Qf5 {[%emt 0:00:20]} 28. Bb8 {[%emt 0:00:20]} Rc8 {[%emt 0:00:53]} 29. Ba7 {[%emt 0:00:43]} Bd6 {[%emt 0:00:47]} 30. Qa4 {[%emt 0:01:33]} f6 {[%emt 0:00:47]} 31. Qxa6 {[%emt 0:00:16]} Qxf3 {[%emt 0:00:26]} 32. Bb6 {[%emt 0:00:25]} d4 {[%emt 0:00:21]} 33. Qc4 {[%emt 0:00:10]} Qd5 {[%emt 0:00:42]} 34. Qd3 {[%emt 0:05:25]} Rb8 {[%emt 0:00:21]} 35. Qa6 {[%emt 0:00:00]} Bc7 {[%emt 0:00:44]} 36. Rc5 {[%emt 0:00:00]} Qd6 {[%emt 0:00:26]} 37. Bxc7 {[%emt 0:00:00]} Kxc7 {[%emt 0:00:33]} 38. b4 {[%emt 0:00:00]} d3 {[%emt 0:00:24]} 39. Qa7+ {[%emt 0:00:00]} Rb7 {[%emt 0:00:15]} 40. Qa5+ {[%emt 0:00:00]} Kd7 {[%emt 0:00:21]} 41. Qa8 {[%emt 0:00:00]} d2 {[%emt 0:00:57]} 42. Qxb7+ {[%emt 0:00:00]} Qc7 {[%emt 0:00:07]} 43. Rd5+ {[%emt 0:00:00]} cxd5 {[%emt 0:00:06]} 44. Qxd5+ {[%emt 0:00:00]} Qd6 {[%emt 0:00:05]} 45. Qf7+ {[%emt 0:00:00]} Kc6 {[%emt 0:00:25]} 46. Qe8+ {[%emt 0:00:19]} Kb6 {[%emt 0:00:07]} 0-1

[Event "Centenario Panaderia Pulido 2023"]
[Site "San Mateo Gran Canaria"]
[Date "2023.12.06"]
[Round "4.7"]
[White "Uzcategui Rodriguez, Alejandro"]
[Black "Almenares Garcia, Mario Adrian"]
[Result "1-0"]
[ECO "B07"]
[WhiteElo "2235"]
[BlackElo "2000"]
[Annotator "ChessBase"]
[PlyCount "83"]
[EventDate "2023.12.04"]
[EventType "swiss"]
[EventCountry "ESP"]
[SourceTitle "playchess.com"]
[Source "ChessBase"]
[SourceQuality "1"]
[TimeControl "5400+30"]

1. e4 {[%emt 1:31:00]} d6 {[%emt 0:04:44]} 2. d4 {[%emt 0:00:00]} Nf6 {[%emt 0:00:14]} 3. Nc3 {[%emt 0:00:00]} g6 {[%emt 0:00:10]} 4. Bg5 {[%emt 0:00:00]} h6 {[%emt 0:00:31]} 5. Bf4 {[%emt 0:00:00]} Bg7 {[%emt 0:00:16]} 6. Qd2 {[%emt 0:00:00]} g5 {[%emt 0:00:12]} 7. Be3 {[%emt 0:00:00]} Ng4 {[%emt 0:00:09]} 8. h4 {[%emt 0:00:00]} Nxe3 {[%emt 0:00:16]} 9. Qxe3 {[%emt 0:00:00]} e5 {[%emt 0:00:15]} 10. dxe5 {[%emt 0:00:00]} Bxe5 {[%emt 0:00:18]} 11. Nf3 {[%emt 0:00:00]} Bf4 {[%emt 0:02:43]} 12. Qd4 {[%emt 0:00:00]} O-O {[%emt 0:00:10]} 13. Nd5 {[%emt 0:00:00]} Nc6 {[%emt 0:00:17]} 14. Qc3 {[%emt 0:00:00]} f6 {[%emt 0:05:23]} 15. hxg5 {[%emt 0:00:00]} Bxg5 {[%emt 0:01:45]} 16. Nxg5 {[%emt 0:00:00]} hxg5 {[%emt 0:00:09]} 17. Qf3 {[%emt 0:00:00]} Kg7 {[%emt 0:13:31]} 18. Qh5 {[%emt 0:00:00]} Rh8 {[%emt 0:00:21]} 19. Qxh8+ {[%emt 0:00:00]} Qxh8 {[%emt 0:00:25]} 20. Rxh8 {[%emt 0:00:00]} Kxh8 {[%emt 0:00:02]} 21. Nxc7 {[%emt 0:00:00]} Rb8 {[%emt 0:00:11]} 22. O-O-O {[%emt 0:00:00]} Bg4 {[%emt 0:02:06]} 23. f3 {[%emt 0:00:00]} Bh5 {[%emt 0:00:44]} 24. Rxd6 {[%emt 0:00:00]} Rf8 {[%emt 0:02:45]} 25. Ne6 {[%emt 0:00:00]} Rg8 {[%emt 0:01:47]} 26. Nc5 {[%emt 0:00:00]} Kg7 {[%emt 0:01:54]} 27. Bc4 {[%emt 0:00:00]} Rh8 {[%emt 0:00:30]} 28. Ne6+ {[%emt 0:00:00]} Kh6 {[%emt 0:01:45]} 29. Bd5 {[%emt 0:00:00]} Ne5 {[%emt 0:00:31]} 30. Nd4 {[%emt 0:00:00]} Rf8 {[%emt 0:03:50]} 31. Nf5+ {[%emt 0:00:00]} Kh7 {[%emt 0:00:21]} 32. Re6 {[%emt 0:00:00]} Bg6 {[%emt 0:04:45]} 33. Re7+ {[%emt 0:00:00]} Kh8 {[%emt 0:00:18]} 34. Nd6 {[%emt 0:00:00]} Rd8 {[%emt 0:00:49]} 35. Nxb7 {[%emt 0:00:00]} Rb8 {[%emt 0:01:38]} 36. c4 {[%emt 0:00:00]} Nd3+ {[%emt 0:00:44]} 37. Kd2 {[%emt 0:00:00]} Nf4 {[%emt 0:00:26]} 38. g3 {[%emt 0:00:00]} Nh5 {[%emt 0:00:09]} 39. c5 {[%emt 0:00:00]} Nxg3 {[%emt 0:00:42]} 40. c6 {[%emt 0:00:00]} g4 {[%emt 0:03:36]} 41. fxg4 {[%emt 0:00:00]} Rc8 {[%emt 0:00:50]} 42. Nd6 {[%emt 0:00:00]} 1-0

[Event "Centenario Panaderia Pulido 2023"]
[Site "San Mateo Gran Canaria"]
[Date "2023.12.06"]
[Round "4.8"]
[White "Hernandez Leon, Alberto"]
[Black "Guerrero Orihuela, Jose Luis"]
[Result "1-0"]
[ECO "A56"]
[WhiteElo "2209"]
[BlackElo "1901"]
[Annotator "RC"]
[PlyCount "89"]
[EventDate "2023.12.04"]
[EventType "swiss"]
[EventCountry "ESP"]
[SourceTitle "playchess.com"]
[Source "ChessBase"]
[SourceQuality "1"]
[TimeControl "5400+30"]

1. d4 {[%emt 0:00:08]} Nf6 {[%emt 0:00:49]} 2. c4 {[%emt 0:00:14]} c5 {[%emt 0:00:08]} 3. d5 {[%emt 0:00:23]} e5 {[%emt 0:00:29]} 4. Nc3 {[%emt 0:01:03]} d6 {[%emt 0:00:09]} 5. e4 {[%emt 0:00:13]} Nbd7 {[%emt 0:03:10]} 6. Nf3 {[%emt 0:01:23]} Be7 {[%emt 0:00:52]} 7. Be2 {[%emt 0:01:31]} Nf8 {[%emt 0:02:41]} 8. O-O {[%emt 0:02:01]} Ng6 {[%emt 0:00:15]} 9. Ne1 {[%emt 0:06:20]} O-O {[%emt 0:03:44]} 10. Nd3 {[%emt 0:00:21]} Nd7 {[%emt 0:01:48]} 11. a3 {[%emt 0:09:05]} Bg5 {[%emt 0:04:53]} 12. g3 {[%emt 0:04:57]} b6 {[%emt 0:08:41]} 13. b4 {[%emt 0:02:32]} Kh8 {[%emt 0:05:29]} 14. Rb1 {[%emt 0:08:34]} Bxc1 {[%emt 0:08:43]} 15. Qxc1 {[%emt 0:02:31]} f5 {[%emt 0:00:27]} 16. exf5 {[%emt 0:01:24]} Rxf5 {[%emt 0:00:17]} 17. Bg4 {[%emt 0:04:05]} Rf8 {[%emt 0:00:11]} 18. Qe3 {[%emt 0:13:55]} Nf6 {[%emt 0:11:01]} 19. Bxc8 {[%emt 0:00:20]} Qxc8 {[%emt 0:00:05]} 20. bxc5 {[%emt 0:05:39]} bxc5 {[%emt 0:00:06]} 21. f3 {[%emt 0:00:39]} Ne7 {[%emt 0:06:43]} 22. Nf2 {[%emt 0:05:15]} Nf5 {[%emt 0:01:18]} 23. Qd3 {[%emt 0:00:09]} Nd4 {[%emt 0:01:16]} 24. Nfe4 {[%emt 0:00:41]} Qd7 {[%emt 0:03:44]} 25. Kg2 {[%emt 0:03:05]} Rab8 {[%emt 0:05:50]} 26. Rxb8 {[%emt 0:11:31]} Rxb8 {[%emt 0:00:10]} 27. Rb1 {[%emt 0:00:05]} Qc7 {[%emt 0:03:14]} 28. Ng5 {[%emt 0:04:42]} Re8 {[%emt 0:08:20]} 29. Nb5 {[%emt 0:01:32]} Nxb5 {[%emt 0:01:54]} 30. Rxb5 {[%emt 0:00:09]} a6 {[%emt 0:01:15]} 31. Rb3 {[%emt 0:00:48]} Rb8 {[%emt 0:02:19]} 32. Qb1 {[%emt 0:01:17]} Rxb3 {[%emt 0:03:10]} 33. Qxb3 {[%emt 0:00:07]} Nd7 {[%emt 0:00:30]} 34. Qa4 {[%emt 0:02:59]} h6 {[%emt 0:02:56]} 35. Qc6 {[%emt 0:03:25]} Qxc6 {[%emt 0:02:41]} 36. dxc6 {[%emt 0:00:05]} Nb6 {[%emt 0:00:04]} 37. Nf7+ {[%emt 0:00:07]} Kg8 {[%emt 0:00:02]} 38. Nxd6 {[%emt 0:00:04]} Na8 {[%emt 0:00:04]} 39. Ne4 {[%emt 0:02:52]} Kf7 {[%emt 0:00:06]} 40. Nxc5 {[%emt 0:00:05]} Nc7 {[%emt 0:00:05]} 41. Kf2 {[%emt 0:00:43]} Ke7 {[%emt 0:00:06]} 42. Nb7 {[%emt 0:00:09]} Na8 {[%emt 0:03:54]} 43. Ke3 {[%emt 0:01:00]} Nb6 {[%emt 0:00:06]} 44. Kd3 {[%emt 0:00:30]} Na4 {[%emt 0:02:09]} 45. c5 {[%emt 0:04:22]} 1-0

[Event "Centenario Panaderia Pulido 2023"]
[Site "San Mateo Gran Canaria"]
[Date "2023.12.06"]
[Round "4.9"]
[White "Hernandez Leon, Sergio"]
[Black "Sanchez Gonzalez, Diego"]
[Result "1-0"]
[ECO "A13"]
[WhiteElo "2167"]
[BlackElo "1858"]
[Annotator "RC"]
[PlyCount "73"]
[EventDate "2023.12.04"]
[EventType "swiss"]
[EventCountry "ESP"]
[SourceTitle "playchess.com"]
[Source "ChessBase"]
[SourceQuality "1"]
[TimeControl "5400+30"]

1. Nf3 {[%emt 0:00:04]} d5 {[%emt 0:00:28]} 2. b3 {[%emt 0:00:09]} c5 {[%emt 0:00:44]} 3. Bb2 {[%emt 0:00:32]} e6 {[%emt 0:01:03]} 4. e3 {[%emt 0:00:17]} Nf6 {[%emt 0:00:12]} 5. c4 {[%emt 0:01:54]} Nbd7 {[%emt 0:01:06]} 6. Nc3 {[%emt 0:01:07]} a6 {[%emt 0:00:37]} 7. cxd5 {[%emt 0:01:04]} exd5 {[%emt 0:00:08]} 8. Be2 {[%emt 0:00:09]} Bd6 {[%emt 0:02:58]} 9. d4 {[%emt 0:00:07]} Nb6 {[%emt 0:06:40]} 10. Rc1 {[%emt 0:04:16]} Qe7 {[%emt 0:03:28]} 11. O-O {[%emt 0:02:24]} O-O {[%emt 0:00:50]} 12. a4 {[%emt 0:02:46]} Bf5 {[%emt 0:07:02]} 13. dxc5 {[%emt 0:17:15]} Bxc5 {[%emt 0:00:07]} 14. a5 {[%emt 0:00:27]} Nbd7 {[%emt 0:00:12]} 15. Nxd5 {[%emt 0:00:27]} Nxd5 {[%emt 0:00:13]} 16. Qxd5 {[%emt 0:00:07]} Be6 {[%emt 0:03:32]} 17. Qd2 {[%emt 0:17:45]} Rfd8 {[%emt 0:11:04]} 18. Qc3 {[%emt 0:06:26]} Qf8 {[%emt 0:01:48]} 19. Ng5 {[%emt 0:03:23]} Bf5 {[%emt 0:03:08]} 20. Rfd1 {[%emt 0:26:28]} h6 {[%emt 0:03:22]} 21. Nf3 {[%emt 0:11:11]} Rac8 {[%emt 0:00:50]} 22. Ne5 {[%emt 0:02:13]} Bb4 {[%emt 0:14:26]} 23. Qd4 {[%emt 0:00:06]} Nf6 {[%emt 0:04:12]} 24. Rxc8 {[%emt 0:00:09]} Rxc8 {[%emt 0:01:02]} 25. Bc4 {[%emt 0:00:11]} Bxa5 {[%emt 0:17:50]} 26. Bxf7+ {[%emt 0:01:33]} Kh8 {[%emt 0:16:28]} 27. Be6 {[%emt 0:00:13]} Be4 {[%emt 0:00:00]} 28. Bxc8 {[%emt 0:00:45]} Qxc8 {[%emt 0:00:00]} 29. f3 {[%emt 0:00:22]} Bf5 {[%emt 0:00:00]} 30. Nf7+ {[%emt 0:00:15]} Kh7 {[%emt 0:00:00]} 31. Nd6 {[%emt 0:00:06]} Qe6 {[%emt 0:00:00]} 32. Nxf5 {[%emt 0:00:19]} Qxf5 {[%emt 0:00:00]} 33. Qd3 {[%emt 0:00:07]} Qxd3 {[%emt 0:00:00]} 34. Rxd3 {[%emt 0:00:04]} Kg6 {[%emt 0:00:00]} 35. Bxf6 {[%emt 0:00:15]} gxf6 {[%emt 0:00:00]} 36. Rd7 {[%emt 0:00:18]} b5 {[%emt 0:00:00]} 37. Rd6 {[%emt 0:00:24]} 1-0

[Event "Centenario Panaderia Pulido 2023"]
[Site "San Mateo Gran Canaria"]
[Date "2023.12.06"]
[Round "4.10"]
[White "Ramos Santana, Marcelino"]
[Black "Marrero Cardenes, Agustin"]
[Result "0-1"]
[ECO "B12"]
[WhiteElo "1830"]
[BlackElo "2106"]
[Annotator "RC"]
[PlyCount "74"]
[EventDate "2023.12.04"]
[EventType "swiss"]
[EventCountry "ESP"]
[SourceTitle "playchess.com"]
[Source "ChessBase"]
[SourceQuality "1"]
[TimeControl "5400+30"]

1. e4 {[%emt 0:01:44]} c6 {[%emt 0:00:15]} 2. d4 {[%emt 0:00:35]} d5 {[%emt 0:00:05]} 3. e5 {[%emt 0:00:05]} Bf5 {[%emt 0:00:07]} 4. Nf3 {[%emt 0:00:19]} e6 {[%emt 0:00:20]} 5. Be2 {[%emt 0:00:44]} c5 {[%emt 0:00:32]} 6. Be3 {[%emt 0:01:22]} Qb6 {[%emt 0:01:28]} 7. Nc3 {[%emt 0:00:38]} Nc6 {[%emt 0:07:22]} 8. O-O {[%emt 0:00:55]} c4 {[%emt 0:02:01]} 9. Rb1 {[%emt 0:04:44]} Bb4 {[%emt 0:03:11]} 10. a3 {[%emt 0:08:38]} Bxc3 {[%emt 0:03:21]} 11. bxc3 {[%emt 0:00:10]} Qa6 {[%emt 0:00:05]} 12. Nh4 {[%emt 0:02:25]} Nge7 {[%emt 0:00:37]} 13. g4 {[%emt 0:00:35]} Bg6 {[%emt 0:00:15]} 14. f4 {[%emt 0:00:17]} Be4 {[%emt 0:00:52]} 15. f5 {[%emt 0:02:52]} Qxa3 {[%emt 0:07:20]} 16. Qd2 {[%emt 0:01:21]} Qa4 {[%emt 0:04:32]} 17. fxe6 {[%emt 0:14:32]} fxe6 {[%emt 0:00:05]} 18. Bd1 {[%emt 0:07:15]} Nd8 {[%emt 0:05:04]} 19. Bg5 {[%emt 0:02:50]} Qd7 {[%emt 0:02:11]} 20. Qf2 {[%emt 0:04:47]} h6 {[%emt 0:05:25]} 21. Bc1 {[%emt 0:02:49]} g5 {[%emt 0:02:44]} 22. Qf6 {[%emt 0:06:25]} Rg8 {[%emt 0:01:15]} 23. Ng2 {[%emt 0:00:20]} Ng6 {[%emt 0:02:20]} 24. Ba3 {[%emt 0:01:01]} Bxg2 {[%emt 0:00:52]} 25. Kxg2 {[%emt 0:01:28]} Nf4+ {[%emt 0:00:06]} 26. Rxf4 {[%emt 0:19:02]} gxf4 {[%emt 0:00:10]} 27. Qxh6 {[%emt 0:00:16]} Nf7 {[%emt 0:06:05]} 28. Qf6 {[%emt 0:00:30]} Ng5 {[%emt 0:04:03]} 29. h4 {[%emt 0:02:54]} Ne4 {[%emt 0:01:11]} 30. Qh6 {[%emt 0:00:28]} O-O-O {[%emt 0:04:20]} 31. Bf3 {[%emt 0:02:24]} Qf7 {[%emt 0:02:34]} 32. Bc1 {[%emt 0:06:59]} Rdf8 {[%emt 0:04:06]} 33. Bxe4 {[%emt 0:01:37]} Rxg4+ {[%emt 0:00:47]} 34. Kh3 {[%emt 0:01:01]} dxe4 {[%emt 0:01:00]} 35. Ba3 {[%emt 0:01:50]} Rfg8 {[%emt 0:00:21]} 36. Bd6 {[%emt 0:00:35]} Rg3+ {[%emt 0:00:20]} 37. Kh2 {[%emt 0:00:18]} Qf5 {[%emt 0:00:07]} 0-1